Cogmind - Beta 15 @@@ ROGUE MODE // 2025.10.12 @ 13:11:40 Player: MAXX-P31 Result: Self-destructed Performance ------------- Evolutions (6) 3000 Regions Visited (13) 2600 Robots Destroyed (213) 1065 Value Destroyed (9077) 9077 Prototype IDs (21) 420 Alien Tech Used (0) 0 Bonus (5670) 5670 TOTAL SCORE: 21832 Bonus ------- Triggered High Security 500 High Alert Combat Kills 2192 Follower Combat Kills 2052 Met Data Miner 300 Built Enhanced Grunts 300 Met R17 at Cetus 500 Friendly Fire -174 Cogmind --------- Core Integrity 111/1150 Matter 300/300 Energy 450/450 System Corruption 18% Temperature Cool (0) Movement Core (1450) Ox28 Location -4/Factory Parts ------- > --- POWER (2) -------- (None) > --- PROPULSION (4) --- (None) > --- UTILITY (9) ------ Huge Storage Unit Energy Well Advanced Target Analyzer > --- WEAPON (4) ------- (None) > --- INVENTORY (25) --- Flexi-carbon Leg Advanced Heat Sink Experimental Cooling System Advanced Coolant Injector Energy Well (350) Matter Compressor (250) Advanced Sensor Array Advanced Signal Interpreter Shield Generator Advanced Variable Charge Gun Peak State ------------ > --- POWER ------------ Fission Core Light Antimatter Reactor > --- PROPULSION ------- Centrium Heavy Treads Centrium Heavy Treads > --- UTILITY ---------- Advanced Heat Sink Advanced Heat Sink Improved Cooling System Advanced Coolant Injector Huge Storage Unit Advanced Target Analyzer Centrium Medium Armor Plating Centrium Medium Armor Plating Hardlight Generator > --- WEAPON ----------- Plasma Rifle Wave Gun KE Penetrator Advanced KE Penetrator > --- INVENTORY -------- Micro Fission Core Improved Treads Centrium Heavy Treads Centrium Heavy Treads Centrium Wheel Advanced Heat Sink Experimental Cooling System Advanced Coolant Injector Huge Storage Unit Energy Well Energy Well High-capacity Matter Pod Improved Sensor Array Advanced Sensor Array Advanced Signal Interpreter Improved Medium Armor Plating Improved Thermal Shield Advanced Variable Charge Gun Heavy Phase Cannon Neutron Cannon Rocket Launcher Rocket Launcher Rocket Launcher [Rating: 136] Favorites ----------- Power Improved Deuterium Engine Engine Improved Deuterium Engine Power Core Fission Core Reactor Light Antimatter Reactor Propulsion Medium Treads Treads Medium Treads Leg Flexi-carbon Leg Wheel Wheel Utility Advanced Heat Sink Device Advanced Heat Sink Storage Huge Storage Unit Processor Target Analyzer Protection Layered Medium Armor Plating Weapon Heavy Particle Gun Energy Gun Heavy Particle Gun Energy Cannon Neutron Cannon Ballistic Gun Heavy Assault Rifle Ballistic Cannon Bore Cannon Launcher Rocket Launcher Build | -11 -10 -9 -8 -7 -7 -7 -7 -6 -6 -5 -5 -5 -4 ------- Run | Yrd Mat Mat Mat Fac Low Low Dat Pro Fac Fac Ext Cet Fac Slots Evolved 12 | . . 2 2 2 . . . . 2 2 . . 2 Power 1 | . . . . . . . . . . . . . 1 Propulsion 2 | . . . 2 . . . . . . . . . . Utility 7 | . . 1 . 1 . . . . 2 2 . . 1 Weapon 2 | . . 1 . 1 . . . . . . . . . Parts Attached 179 | 7 2 16 16 10 4 . . 9 32 18 15 8 42 Power 16 | 1 . 1 . 2 . . . 2 2 . 1 . 7 Engine 9 | 1 . 1 . 2 . . . 2 2 . 1 . . Core 2 | . . . . . . . . . . . . . 2 Reactor 5 | . . . . . . . . . . . . . 5 Propulsion 46 | 2 1 3 4 4 . . . 3 9 5 4 2 9 Treads 24 | 2 . 3 4 4 . . . 3 4 . . 2 2 Leg 20 | . . . . . . . . . 5 5 4 . 6 Wheel 2 | . 1 . . . . . . . . . . . 1 Hover . | . . . . . . . . . . . . . . Flight . | . . . . . . . . . . . . . . Utility 50 | 2 1 2 4 2 2 . . 1 9 5 6 3 13 Device 29 | 1 . 1 2 1 2 . . . 5 3 4 1 9 Storage 6 | 1 1 . 1 . . . . . . . 1 . 2 Processor 3 | . . . . 1 . . . . . 1 . . 1 Hackware . | . . . . . . . . . . . . . . Protection 12 | . . 1 1 . . . . 1 4 1 1 2 1 Artifact . | . . . . . . . . . . . . . . Weapon 67 | 2 . 10 8 2 2 . . 3 12 8 4 3 13 Energy Gun 33 | . . 3 6 2 1 . . . 4 4 2 1 10 Energy Cannon 4 | . . 1 . . . . . . . 1 . 1 1 Ballistic Gun 22 | 2 . 5 . . . . . 1 8 3 1 1 1 Ballistic Cannon 3 | . . 1 . . 1 . . . . . 1 . . Launcher 5 | . . . 2 . . . . 2 . . . . 1 Special Weapon . | . . . . . . . . . . . . . . Impact Weapon . | . . . . . . . . . . . . . . Slashing Weapon . | . . . . . . . . . . . . . . Piercing Weapon . | . . . . . . . . . . . . . . Special Melee Weapon . | . . . . . . . . . . . . . . Unidentified Prototypes 11 | . . 3 2 . . . . . . 1 . 4 1 Corrupted Parts 1 | . . . . . . . . . . . . 1 . System Corruption 6 | . . . . . . . . . . . . 6 . Parts Lost 87 | . 2 1 1 1 . . . 10 7 10 10 3 42 Power 12 | . . 1 . 1 . . . 1 1 . 1 . 7 Propulsion 23 | . 1 . . . . . . 5 2 4 3 . 8 Utility 22 | . 1 . . . . . . 1 1 3 4 . 12 Weapon 30 | . . . 1 . . . . 3 3 3 2 3 15 Highest Loss Streak 18 | . 2 1 1 1 . . . 7 5 3 7 2 18 To Critical Strikes 1 | . . . . . . . . 1 . . . . . Average Backups 22 | 1 4 12 22 24 25 25 25 23 24 24 23 24 21 Power 1 | . 1 1 1 1 2 2 2 1 1 2 2 2 . Propulsion 3 | . 1 3 2 4 4 4 4 1 3 2 1 4 3 Utility 10 | . 1 6 9 10 11 11 11 11 13 11 8 8 10 Weapon 7 | . 1 1 8 8 8 8 8 8 6 8 11 8 6 Tool/Special . | . . . . . . . . . . . . . . Unused Backups 41 | . . 4 5 3 1 . . . 9 2 . 3 14 Power 4 | . . 1 . 1 . . . . 1 . . . 1 Propulsion 6 | . . 1 . . . . . . . 2 . 2 1 Utility 20 | . . . 1 1 . . . . 6 . . 1 11 Weapon 11 | . . 2 4 1 1 . . . 2 . . . 1 Tool/Special . | . . . . . . . . . . . . . . Average Slot Usage (%) 96 | . 90 94 99 99 99 100 100 98 98 92 96 90 84 Engine 6 | . 14 10 9 6 7 7 7 6 6 5 5 5 . Treads 20 | . 21 20 35 29 30 30 30 29 14 . . 8 8 Leg 4 | . . . . . . . . . 11 21 22 4 1 Device 17 | . 7 9 12 16 15 15 15 15 21 26 24 23 25 Storage 7 | . 14 11 9 7 7 7 7 7 6 5 10 6 5 Processor 3 | . . . . 5 7 7 7 3 . 4 5 5 5 Protection 4 | . . 9 5 . . . . 3 10 3 1 9 6 Energy Gun 18 | . . 8 17 29 29 30 30 24 9 11 15 13 13 Ballistic Gun 7 | . 28 22 9 . . . . 3 15 10 3 7 3 Peak Build Rating 136 | 7 7 18 35 51 53 53 53 53 77 86 83 110 136 Average Rating 59 | 5 6 14 31 45 52 53 53 49 69 79 79 100 118 On Entrance 47 | . 7 6 18 35 51 53 53 53 49 77 79 78 106 Naked Turns . | . . . . . . . . . . . . . . Heaviest Build 149 | 11 26 40 105 105 106 104 104 112 131 130 126 134 149 Greatest Support 160 | 40 40 46 92 104 104 104 104 107 116 83 78 160 160 Greatest Overweight (x) 7 | . 2 2 1 1 1 . . 1 5 2 3 1 7 Average Overweight (x) . | . 1 . 1 . . . . . . 1 1 . . Largest Inventory Capacity 25 | 8 15 15 25 25 25 25 25 25 25 25 25 25 25 Average Capacity 23 | 7 13 15 24 25 25 25 25 25 25 25 25 25 25 Most Carried 25 | 3 7 15 25 25 25 25 25 25 25 25 25 25 25 Average Carried 22 | 2 4 12 22 24 24 25 25 23 24 24 23 24 22 Final Capacity 25 | 8 15 15 25 25 25 25 25 25 25 25 25 25 25 Final Carried 25 | 3 7 15 25 25 25 25 25 24 25 24 23 25 10 Class Distribution -------------------- 33% | Gunner 31% | Scavenger-Tank 16% | Scavenger-Gunner 14% | Tank 4% | Mutant Dominant Class ---------------- Mutant | -10/Materials Scavenger-Tank | -9/Materials Tank | -8/Materials Gunner | -7/Factory Gunner | -7/Lower Caves Gunner | -7/Lower Caves Gunner | -7/Data Miner Tank | -6/Proximity Caves Scavenger-Tank | -6/Factory Scavenger-Gunner | -5/Factory Scavenger-Gunner | -5/Extension Scavenger-Tank | -5/Cetus Scavenger-Tank | -4/Factory Resources | -11 -10 -9 -8 -7 -7 -7 -7 -6 -6 -5 -5 -5 -4 ----------- Run | Yrd Mat Mat Mat Fac Low Low Dat Pro Fac Fac Ext Cet Fac Matter Collected 5376 | 254 50 694 372 116 179 12 . 253 1257 545 327 171 1146 Remotely . | . . . . . . . . . . . . . . Salvage Created 11465 | 81 187 829 956 582 386 . . 347 3342 1315 395 203 2842 Parts 381 | 6 7 47 45 14 6 . . 21 103 26 9 7 90 Haulers Intercepted 12 | . 1 3 4 . . . . . 1 . . . 3 Recyclers Shooed 10 | . . 3 1 1 . . . . 3 1 1 . . Parts Field Recycled . | . . . . . . . . . . . . . . Retrieved Matter . | . . . . . . . . . . . . . . Parts Self-Destructed 21 | . . . . . 4 . . 17 . . . . . Prevented 2 | . . . . . 2 . . . . . . . . Kills | -11 -10 -9 -8 -7 -7 -7 -7 -6 -6 -5 -5 -5 -4 ------- Run | Yrd Mat Mat Mat Fac Low Low Dat Pro Fac Fac Ext Cet Fac Combat Hostiles Destroyed 149 | . 5 9 15 6 6 . . 11 35 18 5 3 36 Melee 1 | . . . . . . . . . . . . . 1 Guns 102 | . 4 9 8 6 5 . . 5 34 11 2 1 17 Cannons 10 | . . . . . . . . . . . . 1 9 AOE 16 | . 1 . 6 . . . . 6 . . . . 3 Classes Destroyed 19 | 2 3 4 4 1 2 . . . 2 . . . 1 Worker 11 | . . . 3 1 . . . . 3 . . . 4 Builder 6 | . . 1 1 . . . . . 2 . . . 2 Tunneler 1 | 1 . . . . . . . . . . . . . Hauler 12 | . 1 3 4 . . . . . 1 . . . 3 Recycler 22 | 1 . 3 1 2 . . . . 10 2 . . 3 Minesweeper 1 | . . . . . 1 . . . . . . . . Mechanic 1 | . . 1 . . . . . . . . . . . Operator 3 | . . . . . . . . . 1 . 1 . 1 Watcher 6 | . . . 2 3 . . . . 1 . . . . Swarmer 17 | . 2 . 3 . . . . 6 3 2 . . 1 Saboteur 1 | . . . . . . . . . . . . . 1 Grunt 65 | . 3 5 8 4 4 . . . 20 4 1 . 16 Brawler 7 | . . . . . . . . . 2 . . . 5 Duelist 9 | . . 1 . . 1 . . . 2 . . . 5 Sentry 18 | . . 3 2 1 . . . 1 2 5 2 . 2 Hunter 11 | . . . 1 . . . . 3 1 4 . . 2 Programmer 13 | . . . . 1 . . . . 5 3 . . 4 Heavy 1 | . . . 1 . . . . . . . . . . Behemoth 4 | . . . . . 1 . . 1 . . 2 . . Cetus Guard 3 | . . . . . . . . . . . . 3 . Thug 1 | . . . . . . . . . . . . . 1 Best Kill Streak 10 | 1 6 3 5 3 4 . . 3 9 8 2 2 10 Combat Bots Only 8 | . 5 3 3 3 4 . . 3 6 8 2 2 8 Max Kills in Single Turn 5 | 1 1 2 5 1 1 . . 2 2 1 1 1 2 Gunslinging 1 | . . 1 . . . . . 1 1 . . . . Exploded 3 | . 1 . 3 . . . . 2 . . . . 2 Melee 1 | . . . . . . . . . . . . . 1 Uniques/NPCs Destroyed . | . . . . . . . . . . . . . . Combat | -11 -10 -9 -8 -7 -7 -7 -7 -6 -6 -5 -5 -5 -4 -------- Run | Yrd Mat Mat Mat Fac Low Low Dat Pro Fac Fac Ext Cet Fac Hostile Shots Fired 1457 | . 55 29 56 35 16 . . 95 252 177 79 28 635 Missed 420 | . 18 9 13 11 4 . . 23 76 41 22 10 193 Hits 1037 | . 37 20 43 24 12 . . 72 176 136 57 18 442 Melee 31 | . . . . . 1 . . . 6 . . . 24 Projectile 1006 | . 37 20 43 24 11 . . 72 170 136 57 18 418 Critical Strikes 46 | . . 2 2 . 1 . . 4 6 3 3 . 25 Actively Blocked 1 | . . . . . . . . . . . . . 1 Part Disruptions 2 | . . . . . . . . . . 2 . . . Damage Taken 18481 | . 547 273 907 291 307 . . 1412 2854 2383 1250 470 7787 Core 2126 | . 203 80 125 27 56 . . 125 234 189 34 14 1039 Absorbed by Shields 472 | . . . . . . . . . . . 189 107 176 Reduced by Siege Mode 10 | . . . . . . . . . . . . 10 . Redirected to Shielding 59 | . . . . . . . . . . . . . 59 Ignored by Resistances 1013 | . . . . . . . . . . . . . 1013 Core Remaining (%) 70 | 100 18 80 77 . . . . 70 72 . . 76 . Volleys Fired 477 | 7 20 45 59 28 12 . . 22 104 48 22 8 102 Largest 4 | 2 2 3 3 4 4 . . 4 4 4 4 4 4 Hottest 350 | 40 40 116 165 245 270 . . 245 298 340 340 350 336 Shots Fired 1668 | 14 40 133 171 112 50 . . 58 405 184 89 32 380 Gun 1561 | 14 40 124 169 112 50 . . 51 405 184 77 28 307 Cannon 85 | . . 9 . . . . . . . . 12 4 60 Launcher 22 | . . . 2 . . . . 7 . . . . 13 Special . | . . . . . . . . . . . . . . Kinetic 682 | 14 40 117 60 . . . . 5 266 86 27 7 60 Thermal 926 | . . 16 109 112 50 . . 46 139 98 62 25 269 Explosive 22 | . . . 2 . . . . 7 . . . . 13 Electromagnetic 38 | . . . . . . . . . . . . . 38 Robot Hit Streak 22 | 6 4 9 19 12 10 . . 18 19 22 12 10 16 Robot Miss Streak 6 | 1 3 4 4 6 2 . . 4 4 6 4 3 6 Penetration Max 1 | . . . . . . . . . 1 . 1 1 1 Secondary Targets 22 | . 1 1 . . 1 . . 1 11 4 1 . 2 Max Gunslinging Chain 1 | . 1 1 . . 1 . . 1 1 1 1 . 1 Shots Hit Robots 1078 | 10 21 82 104 56 36 . . 43 285 123 50 24 244 Core Hits 537 | 5 8 30 39 26 14 . . 28 155 40 15 15 162 Critical Kills 4 | . . . . . . . . . . 1 1 1 1 Critical Parts Destroyed 13 | . . . . . . . . . . 3 3 . 7 Critical Strikes 95 | . . 1 1 6 3 . . 3 1 24 12 4 40 Burn 70 | . . 1 1 6 3 . . 3 1 20 7 3 25 Destroy 18 | . . . . . . . . . . 4 5 1 8 Corrupt 7 | . . . . . . . . . . . . . 7 Melee Attacks . | . . . . . . . . . . . . . . Impact . | . . . . . . . . . . . . . . Slashing . | . . . . . . . . . . . . . . Piercing . | . . . . . . . . . . . . . . Sneak Attacks . | . . . . . . . . . . . . . . Combat Hostiles . | . . . . . . . . . . . . . . Follow-up Attacks . | . . . . . . . . . . . . . . Damage Inflicted 26330 | 88 193 1201 2564 1084 758 . . 1352 5635 2509 1088 755 9103 Guns 20507 | 88 193 1090 1788 1084 758 . . 838 5608 2504 991 645 4920 Cannons 1828 | . . 99 . . . . . . . . 97 110 1522 Explosions 3849 | . . . 744 . . . . 514 . . . . 2591 Melee . | . . . . . . . . . . . . . . Ramming 146 | . . 12 32 . . . . . 27 5 . . 70 Kinetic 8102 | 88 193 1091 584 . . . . 51 3167 1029 375 274 1250 Thermal 14514 | . . 98 1634 1084 758 . . 787 2441 1475 713 481 5043 Explosive 2998 | . . . 314 . . . . 514 . . . . 2170 Electromagnetic 570 | . . . . . . . . . . . . . 570 Impact . | . . . . . . . . . . . . . . Slashing . | . . . . . . . . . . . . . . Piercing . | . . . . . . . . . . . . . . Highest Corruption 18 | . . . . 1 1 1 1 1 2 3 3 9 18 Average Corruption 2 | . . . . 1 1 1 1 1 1 1 3 7 4 Corruption Purged . | . . . . . . . . . . . . . . Corruption Blocked . | . . . . . . . . . . . . . . Effects 94 | . . . . 3 16 3 1 5 9 3 16 15 23 Message Errors 20 | . . . . . 5 1 1 . 2 . 3 5 3 Matter Fused 28 | . . . . 3 6 2 . 2 1 1 5 5 3 Heat Flow Errors 11 | . . . . . 1 . . 2 3 . 3 1 1 Energy Discharges 6 | . . . . . 2 . . . 1 1 . 1 1 Parts Rejected 2 | . . . . . . . . . . . . . 2 Parts Fused 3 | . . . . . . . . . 1 . 1 . 1 Data Loss (minor) 7 | . . . . . . . . . . 1 1 1 4 Data Loss (major) 1 | . . . . . . . . . . . . . 1 Misfires 5 | . . . . . 2 . . . . . 2 1 . Alerts 1 | . . . . . . . . 1 . . . . . Weapon Failures 10 | . . . . . . . . . 1 . 1 1 7 Overload Shots . | . . . . . . . . . . . . . . Overflow Damage 118 | . . . 16 . . . . 43 . . . . 59 Projectiles 31 | . . . . . . . . . . . . . 31 Explosions 87 | . . . 16 . . . . 43 . . . . 28 Melee . | . . . . . . . . . . . . . . Knockbacks . | . . . . . . . . . . . . . . Impact . | . . . . . . . . . . . . . . Kinetic . | . . . . . . . . . . . . . . Secondary . | . . . . . . . . . . . . . . Self-Inflicted Damage 303 | . . . . . . . . . . . . . 303 Shots 6 | . . . . . . . . . . . . . 6 Rammed 9 | . . 4 2 . . . . . . . . . 3 Targets Rammed 22 | . . 4 3 . . . . . 5 2 . . 8 Kicked 9 | . . . . . . . . . 5 2 . . 2 Crushed 4 | . . . 1 . . . . . . . . . 3 Highest Temperature 380 | . 27 378 192 289 197 . . 380 195 93 232 100 357 Average Temperature 72 | . 13 69 61 89 90 . . 106 58 22 66 32 84 Received Heat Transfer 3990 | . 114 132 234 120 51 . . 450 984 234 699 58 914 Effects 5 | . . 1 . . . . . . . . . . 4 Shutdowns 1 | . . 1 . . . . . . . . . . . Energy Bleed 1 | . . . . . . . . . . . . . 1 Interference 3 | . . . . . . . . . . . . . 3 Siege Activations 1 | . . . . . . . . . . . . 1 . Total Turns 9 | . . . . . . . . . . . . 9 . Longest Duration 9 | . . . . . . . . . . . . 9 . Martial Activations . | . . . . . . . . . . . . . . Shielding Activations . | . . . . . . . . . . . . . . Robots Disrupted . | . . . . . . . . . . . . . . Combat Hostiles . | . . . . . . . . . . . . . . Robots Corrupted 3 | . . . . . . . . . . . . . 3 Combat Hostiles 3 | . . . . . . . . . . . . . 3 Parts Fried 3 | . . . . . 1 . . . . . . . 2 Impact Corruptions . | . . . . . . . . . . . . . . Robots Melted 17 | . . . 1 . 1 . . . 1 7 3 1 3 Combat Hostiles 17 | . . . 1 . 1 . . . 1 7 3 1 3 Parts Melted 115 | . . . 12 7 7 . . 5 17 32 12 3 20 Heat Transferred 33390 | . . 310 2779 2596 1719 . . 1707 5078 5825 2190 1374 9812 Parts Sabotaged 4 | . . . . . . . . . . . . . 4 Parts Stolen . | . . . . . . . . . . . . . . Parts Stripped . | . . . . . . . . . . . . . . Power Chain Reactions 3 | . . . . . . . . . . . . . 3 Alert | -11 -10 -9 -8 -7 -7 -7 -7 -6 -6 -5 -5 -5 -4 ------- Run | Yrd Mat Mat Mat Fac Low Low Dat Pro Fac Fac Ext Cet Fac Maximum Alert Level 5 | . . . . . . . . . 2 2 . . 5 Low Security (%) 68 | 100 100 100 100 100 . . . . 45 . 100 100 12 Level 1 15 | . . . . . . . . . 27 90 . . 20 Level 2 6 | . . . . . . . . . 26 9 . . 2 Level 3 1 | . . . . . . . . . . . . . 9 Level 4 2 | . . . . . . . . . . . . . 16 Level 5 1 | . . . . . . . . . . . . . 12 High Security 3 | . . . . . . . . . . . . . 27 Max Security . | . . . . . . . . . . . . . . Peak Influence 2388 | 5 112 174 187 82 . . . . 624 419 198 175 2388 Initial 304 | . . 21 63 60 . . . . . 304 187 81 83 Average 284 | 1 42 54 97 16 . . . . 260 308 140 101 1207 Influence Increases 7318 | 10 162 334 572 213 190 . . 270 1103 526 505 344 3089 Destroy 0b10 Robot/C 3780 | . 100 180 300 120 120 . . 220 700 360 260 160 1260 Destroy 0b10 Robot/NC 330 | 10 5 40 55 30 5 . . . 90 10 5 10 70 Destroy Leader 726 | . 12 66 92 36 20 . . 50 134 90 10 . 216 Allied During Kill 1190 | . . . . . . . . . . . 177 142 871 Successful Hack 68 | . . . 18 26 . . . . 10 . 14 . . Disable Machine 375 | . . 45 60 . . . . . 75 15 15 . 165 Anti-Garrison Action 300 | . . . . . . . . . . . . . 300 Destroy Structure 294 | . . 3 32 1 . . . . 4 6 24 32 192 Lose Combat Pursuer 255 | . 45 . 15 . 45 . . . 90 45 . . 15 Influence Decreases 5110 | 10 110 234 589 289 181 68 . 270 481 764 743 341 1030 Entered New Map 878 | . . 31 89 75 23 14 . . . 318 197 65 66 Time Decay 3156 | 10 90 203 490 214 158 54 . 204 411 326 386 206 404 Lost Part 816 | . 20 . 10 . . . . 66 70 100 100 30 420 Lost Ally 260 | . . . . . . . . . . 20 60 40 140 Squads Dispatched 53 | . . 5 3 3 . . . . 7 5 . . 30 Investigation 2 | . . . . 1 . . . . 1 . . . . Extermination 8 | . . . . 2 . . . . 3 1 . . 2 Reinforcement 17 | . . 5 3 . . . . . 3 1 . . 5 Assault 21 | . . . . . . . . . . . . . 21 Garrison 5 | . . . . . . . . . . 3 . . 2 Intercept . | . . . . . . . . . . . . . . Searches Triggered . | . . . . . . . . . . . . . . Data Miner Redirects 4 | . . . . . . . . . . . . . 4 Construction Impeded 4 | . . 1 1 . . . . . . . . . 2 Haulers Reinforced 2 | . . . . . . . . . 1 . . . 1 Active Scanning Responses . | . . . . . . . . . . . . . . Cargo Convoy Interrupts . | . . . . . . . . . . . . . . Stealth | -11 -10 -9 -8 -7 -7 -7 -7 -6 -6 -5 -5 -5 -4 --------- Run | Yrd Mat Mat Mat Fac Low Low Dat Pro Fac Fac Ext Cet Fac Distress Signals 15 | . 2 1 2 . . . . . 2 1 2 2 3 Communications Jammed . | . . . . . . . . . . . . . . Distress Signals . | . . . . . . . . . . . . . . Times Spotted 266 | . 10 14 24 11 9 . . 11 48 24 14 10 91 Peak Tracking Total 15 | . 8 4 5 5 4 . . 3 7 6 4 5 15 Tactical Retreats 12 | . 1 . 1 . 3 . . . 5 1 . . 1 Traps | -11 -10 -9 -8 -7 -7 -7 -7 -6 -6 -5 -5 -5 -4 ------- Run | Yrd Mat Mat Mat Fac Low Low Dat Pro Fac Fac Ext Cet Fac Traps Triggered 3 | . . . . 1 . . . . . 2 . . . Indirectly . | . . . . . . . . . . . . . . Trap Hack Attempts . | . . . . . . . . . . . . . . Triggered . | . . . . . . . . . . . . . . Disarmed . | . . . . . . . . . . . . . . Reprogrammed . | . . . . . . . . . . . . . . Reused . | . . . . . . . . . . . . . . Traps Extracted . | . . . . . . . . . . . . . . Installed . | . . . . . . . . . . . . . . Triggered . | . . . . . . . . . . . . . . Machines | -11 -10 -9 -8 -7 -7 -7 -7 -6 -6 -5 -5 -5 -4 ---------- Run | Yrd Mat Mat Mat Fac Low Low Dat Pro Fac Fac Ext Cet Fac Machines Disabled 27 | . . 3 4 . . . . . 5 1 1 . 13 Max in Single Turn 3 | . . 1 3 . . . . . 1 1 . . 2 Garrison Access 2 | . . . . . . . . . . . . . 2 Machines Repaired . | . . . . . . . . . . . . . . Machines Dismantled . | . . . . . . . . . . . . . . Machines Sabotaged . | . . . . . . . . . . . . . . Overloaded Fab Kills . | . . . . . . . . . . . . . . Hacking | -11 -10 -9 -8 -7 -7 -7 -7 -6 -6 -5 -5 -5 -4 --------- Run | Yrd Mat Mat Mat Fac Low Low Dat Pro Fac Fac Ext Cet Fac Machines Accessed 22 | . 2 1 3 6 . . 4 . 5 . 1 . . Terminals 15 | . 2 1 3 4 . . . . 4 . 1 . . Fabricators 1 | . . . . . . . . . 1 . . . . Repair Stations . | . . . . . . . . . . . . . . Recycling Units 2 | . . . . 2 . . . . . . . . . Scanalyzers . | . . . . . . . . . . . . . . Garrison Access . | . . . . . . . . . . . . . . Total Hacks 84 | . 5 4 12 12 . . 28 . 19 . 4 . . Successful 52 | . 1 . 8 4 . . 28 . 9 . 2 . . Failed 32 | . 4 4 4 8 . . . . 10 . 2 . . Catastrophic 3 | . . . 1 2 . . . . . . . . . Database Lockouts . | . . . . . . . . . . . . . . Manual 37 | . 3 4 8 5 . . . . 16 . . 1 . Terminals 50 | . 5 4 12 8 . . . . 17 . 4 . . Fabricators 2 | . . . . . . . . . 2 . . . . Repair Stations . | . . . . . . . . . . . . . . Recycling Units 4 | . . . . 4 . . . . . . . . . Scanalyzers . | . . . . . . . . . . . . . . Garrison Access . | . . . . . . . . . . . . . . Terminal Hacks 39 | . . . 3 3 . . 28 . 3 . 2 . . Record 12 | . . . . 1 . . 11 . . . . . . Part Schematic 9 | . . . . . . . 9 . . . . . . Robot Schematic 5 | . . . . . . . 5 . . . . . . Robot Analysis 2 | . . . 1 . . . . . 1 . . . . Prototype ID Bank 3 | . . . . . . . 3 . . . . . . Alert Level 3 | . . . . 1 . . . . 1 . 1 . . Hauler Manifests 4 | . . . 1 1 . . . . 1 . 1 . . Zone Layout 1 | . . . 1 . . . . . . . . . . Fabricator Hacks . | . . . . . . . . . . . . . . Repair Station Hacks . | . . . . . . . . . . . . . . Recycling Unit Hacks . | . . . . . . . . . . . . . . Scanalyzer . | . . . . . . . . . . . . . . Garrison Access Hacks . | . . . . . . . . . . . . . . Unauthorized Hacks 13 | . 1 . 5 1 . . . . 6 . . . . Terminals 11 | . 1 . 5 . . . . . 5 . . . . Botnet 4 | . . . 2 . . . . . 2 . . . . Skim 7 | . 1 . 3 . . . . . 3 . . . . Fabricators 1 | . . . . . . . . . 1 . . . . Haulers 1 | . . . . . . . . . 1 . . . . Repair Stations . | . . . . . . . . . . . . . . Recycling Units 1 | . . . . 1 . . . . . . . . . Recyclers 1 | . . . . 1 . . . . . . . . . Scanalyzers . | . . . . . . . . . . . . . . Garrison Access . | . . . . . . . . . . . . . . Data Cores Recovered . | . . . . . . . . . . . . . . Used . | . . . . . . . . . . . . . . Hacking Detections 18 | . 2 1 3 6 . . . . 5 . 1 . . Full Trace Events 2 | . . . . 1 . . . . 1 . . . . Feedback Events . | . . . . . . . . . . . . . . Feedback Blocked . | . . . . . . . . . . . . . . Robot Schematics Acquired 5 | . . . . . . . 5 . . . . . . Robots Built . | . . . . . . . . . . . . . . Authchips . | . . . . . . . . . . . . . . Time . | . . . . . . . . . . . . . . Total Robot Build Rating . | . . . . . . . . . . . . . . Part Schematics Acquired 9 | . . . . . . . 9 . . . . . . Parts Built . | . . . . . . . . . . . . . . Authchips . | . . . . . . . . . . . . . . Time . | . . . . . . . . . . . . . . Total Part Build Rating . | . . . . . . . . . . . . . . Parts Repaired . | . . . . . . . . . . . . . . Time . | . . . . . . . . . . . . . . Parts Recycled . | . . . . . . . . . . . . . . Recycled Matter . | . . . . . . . . . . . . . . Retrieved Matter . | . . . . . . . . . . . . . . Retrieved Components . | . . . . . . . . . . . . . . Parts Scanalyzed . | . . . . . . . . . . . . . . Part Schematics Acquired . | . . . . . . . . . . . . . . Parts Damaged . | . . . . . . . . . . . . . . Bothacking | -11 -10 -9 -8 -7 -7 -7 -7 -6 -6 -5 -5 -5 -4 ------------ Run | Yrd Mat Mat Mat Fac Low Low Dat Pro Fac Fac Ext Cet Fac Used RIF Installer . | . . . . . . . . . . . . . . Robots Hacked . | . . . . . . . . . . . . . . Non-combat . | . . . . . . . . . . . . . . Combat . | . . . . . . . . . . . . . . Robot Hacks Applied . | . . . . . . . . . . . . . . Relay Couplers Released 3 | . . . . . . . . . . 3 . . . Programmers 3 | . . . . . . . . . . 3 . . . Fabnet Peak Effective % . | . . . . . . . . . . . . . . Robots Rewired 6 | . . . . . . . . . . . 6 . . Allies Hacked 2 | . . . . . . . . . . . . . 2 Hacks Repelled . | . . . . . . . . . . . . . . Allies | -11 -10 -9 -8 -7 -7 -7 -7 -6 -6 -5 -5 -5 -4 -------- Run | Yrd Mat Mat Mat Fac Low Low Dat Pro Fac Fac Ext Cet Fac Total Allies 17 | . . . . . . . . . . . 12 5 . Largest Group 12 | . . . . . . . . . . . 11 12 11 Highest-Rated Group 808 | . . . . . . . . . . . 434 808 777 Highest-Rated Ally 159 | . . . . . . . . . . . 159 159 159 Total Orders 2 | . . . . . . . . . . 2 . . . EXPLORE 2 | . . . . . . . . . . 2 . . . Ally Attacks 266 | . . . . . . . . . . . 88 45 133 Total Damage 8482 | . . . . . . . . . . . 1715 1262 5505 Kills 46 | . . . . . . . . . . . 8 8 30 Allies Corrupted . | . . . . . . . . . . . . . . Allies Melted . | . . . . . . . . . . . . . . Intel | -11 -10 -9 -8 -7 -7 -7 -7 -6 -6 -5 -5 -5 -4 ------- Run | Yrd Mat Mat Mat Fac Low Low Dat Pro Fac Fac Ext Cet Fac Active Infowar (turns) 2607 | 36 166 . . . 1398 398 124 485 . . . . . Sensors 2405 | . . . . . 1398 398 124 485 . . . . . Seismic 202 | 36 166 . . . . . . . . . . . . Robot Analysis Total 2 | . . . 1 . . . . . 1 . . . . Derelict Logs Recovered 3 | . . . . . 2 . . 1 . . . . . Drone Launches 2 | . . . . . . . . . . 2 . . . Drone Recoveries . | . . . . . . . . . . . . . . Exploration | -11 -10 -9 -8 -7 -7 -7 -7 -6 -6 -5 -5 -5 -4 ------------- Run | Yrd Mat Mat Mat Fac Low Low Dat Pro Fac Fac Ext Cet Fac Turns Passed 13138 | 127 333 811 1546 1478 1599 398 124 1158 2157 732 903 437 1335 Spaces Moved 5316 | 60 198 370 521 665 627 239 77 501 768 256 379 143 512 Core 1 | 1 . . . . . . . . . . . . . Treads 4030 | 59 95 298 521 665 627 239 77 501 346 . . 116 486 Legs 1108 | . . . . . . . . . 422 256 379 27 24 Wheels 177 | . 103 72 . . . . . . . . . . 2 Hover . | . . . . . . . . . . . . . . Flight . | . . . . . . . . . . . . . . Fastest Speed 50 | 50 110 110 236 162 162 162 162 156 160 183 187 160 160 Average Speed 195 | 158 136 152 238 194 231 162 162 206 212 193 192 168 162 Slowest Speed 470 | 160 240 240 240 242 242 162 162 242 470 246 335 240 260 Overloaded Moves . | . . . . . . . . . . . . . . Propulsion Burnouts . | . . . . . . . . . . . . . . Robots Hopped . | . . . . . . . . . . . . . . Potential Cave-ins 1 | . . . . . . . . . . . . . 1 Cave-ins Triggered . | . . . . . . . . . . . . . . Exploration Rate (%) 41 | 5 53 44 42 20 77 42 69 63 17 11 54 63 17 Regions Visited 13 Branch Regions 6 Pre-discovered Areas 1 | . . . . . . . 1 . . . . . . Known Exits Taken . | . . . . . . . . . . . . . . Unknown Exits Taken 13 | 1 1 1 1 1 1 1 1 1 1 1 1 1 . Scrap Searched 7 | . . . . . 3 . . 4 . . . . . Spaces Dug . | . . . . . . . . . . . . . . Terrain Destroyed 164 | . . . 38 . . . . 38 . . 11 2 75 Melee . | . . . . . . . . . . . . . . Projectile 38 | . . . 3 . . . . . . . 11 2 22 AOE 126 | . . . 35 . . . . 38 . . . . 53 Terrain Rammed . | . . . . . . . . . . . . . . Walls Destroyed . | . . . . . . . . . . . . . . Machines Disabled . | . . . . . . . . . . . . . . Actions | -11 -10 -9 -8 -7 -7 -7 -7 -6 -6 -5 -5 -5 -4 --------- Run | Yrd Mat Mat Mat Fac Low Low Dat Pro Fac Fac Ext Cet Fac Total 6946 | 78 228 521 700 786 738 250 76 580 1041 383 499 324 742 Wait 569 | 2 4 54 66 61 84 12 . 31 52 30 8 144 21 Move 5303 | 59 197 369 520 664 626 238 76 500 767 255 378 142 512 Hop . | . . . . . . . . . . . . . . Pick Up 113 | 3 4 12 18 8 . . . 7 28 9 6 4 14 Fast Attach 103 | 7 1 14 5 4 3 . . 4 13 14 3 5 30 Attach 73 | . . 1 3 3 . . . 8 17 6 12 3 20 Detach 30 | . . 4 4 1 1 . . 1 5 3 4 4 3 Swap 63 | . 1 2 9 5 9 . . 6 10 3 6 4 8 Drop 134 | . 1 16 13 12 3 . . 1 40 13 1 10 24 Fire 477 | 7 20 45 59 28 12 . . 22 104 48 22 8 102 Melee . | . . . . . . . . . . . . . . Ram 1 | . . . . . . . . . . . . . 1 Kick 9 | . . . . . . . . . 5 2 . . 2 Crush 12 | . . 4 3 . . . . . . . . . 5 Escape Stasis . | . . . . . . . . . . . . . . Rewire 59 | . . . . . . . . . . . 59 . . Trap . | . . . . . . . . . . . . . . Miscellaneous . | . . . . . . . . . . . . . . Route ------- -11/Scrapyard -10/Materials (discovered 2 exits: *Mat / [*Min]) -9/Materials (discovered 2 exits: *Mat / [*Min]) -8/Materials -7/Factory -7/Lower Caves -7/Lower Caves -7/Data Miner -6/Proximity Caves -6/Factory (discovered 3 exits: [*Fac x2] / *Low) -5/Factory (discovered 2 exits: [*Upp] / *Ext) -5/Extension (discovered 2 exits: [*Fac] / *Cet) -5/Cetus (discovered 2 exits: [*Fac] / [*Arc]) -4/Factory History --------- Turn | Location | Event 56 | -11/Scrapyard | Discovered new exit (range 13) 128 | -11/Scrapyard | Entered Materials 288 | -10/Materials | Discovered new exit (range 11) 291 | -10/Materials | Core integrity fell below 50% 315 | -10/Materials | Build established: Mutant 323 | -10/Materials | Core integrity fell below 20% 444 | -10/Materials | Discovered new exit (range 13) 461 | -10/Materials | Entered another Materials area 461 | -9/Materials | Evolved 2 slots: Utility x1, Weapon x1 969 | -9/Materials | Discovered new exit (range 14) 1248 | -9/Materials | Discovered new exit (range 15) 1272 | -9/Materials | Entered another Materials area 1272 | -8/Materials | Evolved 2 slots: Propulsion x2 1473 | -8/Materials | Build established: Tank 2462 | -8/Materials | Build established: Gunner 2696 | -8/Materials | Discovered new exit (range 16) 2818 | -8/Materials | Entered Factory 2818 | -7/Factory | Evolved 2 slots: Utility x1, Weapon x1 3115 | -7/Factory | Build established: Scavenger-Gunner 3582 | -7/Factory | Build established: Gunner 4284 | -7/Factory | Discovered new exit (range 7) 4296 | -7/Factory | Entered Lower Caves 5035 | -7/Lower Caves | Encountered a Warlord checkpoint 5612 | -7/Lower Caves | Spotted B-75 Beast 5620 | -7/Lower Caves | Destroyed B-75 Beast 5706 | -7/Lower Caves | Learned Factory stockpile data 5803 | -7/Lower Caves | Discovered new exit (range 10) 5835 | -7/Lower Caves | Learned Factory terminal intel 5895 | -7/Lower Caves | Entered another Lower Caves area 6275 | -7/Lower Caves | Discovered new exit (range 11) 6293 | -7/Lower Caves | Entered Data Miner 6293 | -7/Data Miner | Discovered new exit (range 7) 6324 | -7/Data Miner | Met Data Miner 6352 | -7/Data Miner | Learned location of Section 7 (-2) 6352 | -7/Data Miner | Acquired the access code to Warlord's prototype stash 6379 | -7/Data Miner | Received God Mode back door access code from Data Miner 6417 | -7/Data Miner | Entered Proximity Caves 6864 | -6/Proximity Caves | Attracted the attention of an 0b10 checkpoint 6888 | -6/Proximity Caves | Spotted B-75 Beast 6948 | -6/Proximity Caves | Destroyed B-75 Beast 6977 | -6/Proximity Caves | Lost 7 parts (1p3n1u2w) 7237 | -6/Proximity Caves | Build established: Tank 7316 | -6/Proximity Caves | Discovered new exit (range 10) 7575 | -6/Proximity Caves | Entered Factory 7575 | -6/Factory | Evolved 2 slots: Utility x2 7576 | -6/Factory | Identified exit to Lower Caves 7578 | -6/Factory | Loaded intel: 26 terminal locations 7702 | -6/Factory | Discovered new exit (range 10) 8055 | -6/Factory | Build established: Scavenger-Tank 9341 | -6/Factory | Lost 5 parts (1p2n1u1w) 9404 | -6/Factory | Discovered new exit (range 14) 9732 | -6/Factory | Entered another Factory area 9732 | -5/Factory | Evolved 2 slots: Utility x2 10006 | -5/Factory | Garrison activated, responded to threat 10083 | -5/Factory | Lost 3 parts (1u2w) 10110 | -5/Factory | Build established: Scavenger-Gunner 10229 | -5/Factory | Lost 3 parts (1n2u) 10273 | -5/Factory | Destroyed 8 combat bots 10275 | -5/Factory | Lost 3 parts (2n1w) 10418 | -5/Factory | Discovered new exit (range 13) 10455 | -5/Factory | Discovered new exit (range 6) 10464 | -5/Factory | Entered Extension 10531 | -5/Extension | Rescued a captive Derelict 10642 | -5/Extension | Rescued a captive Derelict 10643 | -5/Extension | Rescued a captive Derelict 10662 | -5/Extension | Rescued a captive Derelict 10792 | -5/Extension | Lost 3 parts (1n2u) 10972 | -5/Extension | Rescued a captive Derelict 10973 | -5/Extension | Rescued a captive Derelict 11025 | -5/Extension | Rescued A7 11028 | -5/Extension | Spotted B-75 Beast 11039 | -5/Extension | Spotted B-75 Beast 11060 | -5/Extension | Destroyed B-75 Beast 11073 | -5/Extension | Destroyed B-75 Beast 11091 | -5/Extension | Lost 7 parts (1p2n2u2w) 11329 | -5/Extension | Discovered new exit (range 16) 11329 | -5/Extension | Discovered new exit (range 16) 11367 | -5/Extension | Entered Cetus 11367 | -5/Cetus | Accompanied by 9 allies (A7) 11372 | -5/Cetus | Acquired a Cetus Manufacturing Module code from A7 11391 | -5/Cetus | Spotted Cetus Guard 11391 | -5/Cetus | Spotted Cetus Guard 11394 | -5/Cetus | Spotted Cetus Guard 11394 | -5/Cetus | Spotted Cetus Guard 11401 | -5/Cetus | Allies destroyed Cetus Guard 11405 | -5/Cetus | Destroyed Cetus Guard 11406 | -5/Cetus | Allies destroyed Cetus Guard 11409 | -5/Cetus | Allies destroyed Cetus Guard 11510 | -5/Cetus | Started Cetus Manufacturing Module 11535 | -5/Cetus | Manufactured an Enhanced Grunt 11560 | -5/Cetus | Manufactured an Enhanced Grunt 11585 | -5/Cetus | Manufactured an Enhanced Grunt 11610 | -5/Cetus | Manufactured an Enhanced Grunt 11635 | -5/Cetus | Manufactured an Enhanced Grunt 11682 | -5/Cetus | Discovered new exit (range 15) 11710 | -5/Cetus | Spotted Cetus Guard 11711 | -5/Cetus | Spotted Cetus Guard 11714 | -5/Cetus | Spotted Cetus Guard 11714 | -5/Cetus | Spotted Cetus Guard 11723 | -5/Cetus | Destroyed Cetus Guard 11727 | -5/Cetus | Allies destroyed Cetus Guard 11727 | -5/Cetus | Allies destroyed Cetus Guard 11730 | -5/Cetus | Destroyed Cetus Guard 11743 | -5/Cetus | Discovered new exit (range 15) 11748 | -5/Cetus | Build established: Scavenger-Tank 11751 | -5/Cetus | Met Revision 17 11804 | -5/Cetus | Entered Factory 11804 | -4/Factory | Accompanied by 11 allies (A7) 11804 | -4/Factory | Evolved 2 slots: Power x1, Utility x1 11948 | -4/Factory | Lost 3 allies 12254 | -4/Factory | Garrison activated, responded to threat 12304 | -4/Factory | First assault squad dispatched 12327 | -4/Factory | Incoming assault squad redirected 12457 | -4/Factory | Incoming assault squad redirected 12707 | -4/Factory | Incoming assault squad redirected 12723 | -4/Factory | Lost 5 allies 12733 | -4/Factory | Incoming assault squad redirected 12772 | -4/Factory | High security lockdown imminent 12800 | -4/Factory | Destroyed 8 combat bots 12809 | -4/Factory | Lost 4 parts (1p1u2w) 12852 | -4/Factory | High security lockdown engaged 13024 | -4/Factory | Lost 14 parts (2p3n2u7w) 13075 | -4/Factory | System corruption reached 10% 13098 | -4/Factory | Core integrity fell below 50% 13135 | -4/Factory | Core integrity fell below 20% 13139 | -4/Factory | Self-destructed Last Messages --------------- 13129_ Penetrated by Slug. 13130_ Slug penetrates H-77 Assassin. 13131_ M-36 Artificer repairs I-47 Archangel Com. Wheel. 13132_ Penetrated by Slug. 13132_ Centrium Wheel destroyed. 13132_ Slug penetrates Wall. 13132_ Adv. Heat Sink destroyed. 13133_ Slug penetrates P-70 Sage. 13135_ Penetrated by Slug. 13135_ Slug penetrates I-47 Archangel. 13135_ Slug penetrates Wall. 13136_ System corrupted: Component data lost. 13136_ M-36 Artificer repairs P-70 Sage Antigrav System. 13136_ Penetrated by Slug. 13138_ M-36 Artificer repairs H-77 Assassin. 13138_ P-70 Sage resets M-36 Artificer, system corruption cleaned. 13139_ Penetrated by Slug. Map ----- +----------------------------------------------------+ | ?????????????????????????????????????????????????? | | ?????????????????????????????????????????????????? | | ?????????????????????????????????????????????????? | | ?????????????????????????????????????????????????? | | ?????????????????????????????????????????????????? | | ?????????????????????????????????????????????????? | | ?????????????????????????????????????????????????? | | ?????????????????????????????????????????????????? | | ?????????????????????????????????????????????????? | | ?????????????????????????????????????????????????? | | ?????????????????????????????????????????????????? | | ?????????????????????????????????????????????????? | | ?????????????????????????????????????????????????? | | ????????????????????##????###??????#######???????? | | ???????????????????? ??? #?????? #???????? | | ????????????????????" ???" #?????# #####? #? | | ???????????????????""" ""?" #?????# """ #/ ## #? | | ???????????????# """" """" #?????# """ # # | | ???????????????# """ """" #?????# """ " = #### | | ???????????????# #?????#= "# ## ## | | ???????????????# """" "" #?????#####+ ## # ### | | ???????????????#! " " ########## !%*# ### | | ???????????????# !%; [%# # | | ???????????????# =%!;#?###### ### | | ???????????????# % !hmp!###??### "## | | ???????????????# * !]m %@%=; ### ## !% "## | | ???????????????###;;;%; ;[i; * ## =%* "" | | ?????????????????## # ;%; =!=[ #[*!=]/ % | | ????????????????###!######;%;!% ;;[;#!!!== ! | | ??????????? %]= =!h %!*%%[!%=!% ! %= | | ??????????? ! !=* ###";=;!!=/%[%!!* ! *%!% | | ???????????????????????#"##!#;%;;!# # = | | ??????????????????????# ! ! =!! [% || | | ?????????????????????"" ## =% || | | ???????????????????? # " "" # ! | | ??????????????????"" # """ " ## % | | ??????????????????"" ?+ """" """ ;# | | ?????????????????"""??# """" """" ## | | ????????????????? ?? " ##" " | | ?????????????????"?? # +"%" " | | ???????????????????" # !!!? ##" | | ???????????????????" ?# ?? !!!? ## % | | ??????????????????? ??????? !! ? !?##"### % | | ??????????????????????????? ?? ????##??# | | ???????????????????????????####??#???????????# | | ?????????????????????????????????????????????# | | ?????????????????????????????????????????????+ | | ?????????????????????????????????????????????? | | ?????????????????????????????????????????????? | | ?????????????????????????????????????????????? | +----------------------------------------------------+ Best States ------------- Heat Dissipation 135 Coolant Potential 100 Energy Generation 37 Energy Capacity 850 Matter Stores 300 Matter Capacity 300 Sight Range 16 Robot Scan Range 15 Terrain Scan Density 10 Armor Coverage 900 Resistance: TH 25 Core Shielding 30 Evasion (%) 40 Target Analysis 8 Recoil Reduction 4 Kinecelleration 30 Item Schematics ----------------- Combat Drone Bay | -7/Data Miner | Free Lgt. Regenerative Plating | -7/Data Miner | Free Cld. Aerolev Unit | -7/Data Miner | Free Gravity Neutralizer | -7/Data Miner | Free Force Rifle | -7/Data Miner | Free Nuclear Pulse Array | -7/Data Miner | Free Imp. Transmission Jammer | -7/Data Miner | Free Enh. Gauss Cannon | -7/Data Miner | Free Imp. Linear Gravjet | -7/Data Miner | Free Robot Schematics ------------------ B-48 Gladiator | -7/Data Miner | Free H-55 Commando | -7/Data Miner | Free G-47 Trooper | -7/Data Miner | Free M-22 Extractor | -7/Data Miner | Free S-27 Virus | -7/Data Miner | Free Fabricated ------------ Nothing Repaired ---------- Nothing Alien Tech Used ----------------- None Achievements -------------- None Challenges ------------ None Game ------ Seed CloakFusionBrace Manual? 0 Play Time 01:37:27 Cumulative 242.1 hours Start 2025.10.11 @ 21:53:10 End 2025.10.12 @ 13:11:40 Sessions 3 Manual Loads 0 Difficulty Rogue Special Mode None Game No. 126 Rogue 126 Adventurer 0 Explorer 0 Win Type - Total 4 Types 4/0/0/0/0/0/0/0/0/0 Lore% 52 Gallery% 63 Achievement% 57 Wizard Run 0 Options --------- Layout 1 ASCII 0 Keyboard 0 Movement Numpad Keybinds 0 Fullscreen 1 Font 24/Smallcaps Map View 50x35 Zoom Use 0% Tactical HUD 1 Map Filters NONE Filters NONE Steam 1 RUN: 621d943e-b4c4-4988-b559-a216cfd2482d